bitfinex/quotes_BTCUSD_20251114
["timestamp","ask_amount","ask_price","bid_price","bid_amount"]
[1763143344991,0.04604,95768.0,95766.0,0.20884228]
[1763143345202,0.0188881,95767.0,95766.0,0.20884228]
[1763143345830,0.0188881,95767.0,95750.0,0.0004]
[1763143346040,0.323,95759.0,95754.0,0.20886765]
[1763143346240,0.323,95759.0,95754.0,0.20886715]
[1763143346241,0.0188881,95758.0,95754.0,0.20886715]
[1763143346444,0.04604,95757.0,95755.0,0.20886556]
[1763143346620,0.0188881,95756.0,95750.0,0.0004]
[1763143346821,0.0188881,95756.0,95753.0,0.20886875]
[1763143347067,0.0188881,95756.0,95754.0,0.20886672]
[1763143347215,0.0188881,95756.0,95754.0,0.20986672]
[1763143347408,0.323,95763.0,95762.0,0.20885111]
[1763143347613,0.38792662,95763.0,95762.0,0.20885111]
[1763143347947,0.38792619,95763.0,95762.0,0.20885111]
[1763143348108,0.01888619,95763.0,95762.0,0.20885111]
[1763143349720,0.01043623,95820.0,95788.0,0.20879442]
[1763143349721,0.02609903,95789.0,95788.0,0.20879442]
[1763143349923,0.06493225,95789.0,95788.0,0.20879442]
[1763143350761,0.01889225,95789.0,95788.0,0.20879442]
[1763143351365,0.01889225,95789.0,95788.0,0.31359096]
[1763143351576,0.01989225,95789.0,95788.0,0.3570097]
[1763143351945,0.01889225,95789.0,95788.0,0.3570097]
[1763143352884,0.01889225,95789.0,95788.0,0.20879442]
[1763143353319,0.02836408,95789.0,95788.0,0.20979442]
[1763143353531,0.02836408,95789.0,95788.0,0.20879442]
[1763143353745,0.02836408,95789.0,95788.0,0.20979442]
[1763143353941,0.02836408,95789.0,95788.0,0.21179442]
[1763143353942,0.02808743,95789.0,95788.0,0.21179442]
[1763143354311,0.02808743,95789.0,95788.0,0.20979442]
[1763143354743,0.02808743,95789.0,95788.0,0.20879442]
[1763143355143,0.02808743,95789.0,95788.0,0.20979442]
[1763143355608,0.02808743,95789.0,95788.0,0.20879442]
[1763143355976,0.02808743,95789.0,95788.0,0.20979442]
[1763143356348,0.02808743,95789.0,95788.0,0.20879442]
[1763143356698,0.02808743,95789.0,95788.0,0.20979442]
[1763143356841,0.02808743,95789.0,95788.0,0.20879442]
[1763143357054,0.03633462,95821.0,95813.0,0.20873994]
[1763143357261,0.02183008,95842.0,95815.0,0.04341874]
[1763143357469,0.03633462,95849.0,95846.0,0.20866807]
[1763143357667,0.04604,95848.0,95810.0,0.01043732]
[1763143357872,0.74341936,95820.0,95818.0,0.20872693]
[1763143358094,0.06787008,95819.0,95818.0,0.20872693]
[1763143358307,0.02183008,95819.0,95818.0,0.20872693]
[1763143358512,0.02183008,95827.0,95826.0,0.20871162]
[1763143358916,0.02183008,95835.0,95834.0,0.2086942]
[1763143359094,0.06787008,95835.0,95834.0,0.2086942]
[1763143359308,0.04604,95835.0,95834.0,0.2086942]
[1763143359513,0.0479144,95843.0,95842.0,0.20867678]
[1763143359709,0.06787008,95843.0,95842.0,0.20867678]
[1763143360125,0.04604,95843.0,95839.0,0.20868235]
[1763143360294,0.0260835,95846.0,95840.0,0.20867957]
[1763143360490,0.07212378,95845.0,95844.0,0.20867242]
[1763143360787,0.323,95844.0,95833.0,0.20869472]
[1763143360989,0.323,95842.0,95840.0,0.20867957]
[1763143361189,0.02183008,95841.0,95807.0,0.04702]
[1763143361359,0.02449,95821.0,95790.0,0.0104395]
[1763143361558,0.323,95809.0,95808.0,0.20875083]
[1763143361757,0.369,95809.0,95808.0,0.20875083]
[1763143362323,0.046,95812.0,95795.0,0.04702]
[1763143362460,0.37170968,95830.0,95828.0,0.20870726]
[1763143362665,0.046,95829.0,95810.0,0.01043732]
[1763143362881,0.37170968,95820.0,95819.0,0.20872687]
[1763143363061,0.0678369,95820.0,95819.0,0.20872687]
[1763143363297,0.046,95820.0,95819.0,0.20872687]
[1763143364390,0.046,95820.0,95818.0,0.20872702]
[1763143364995,0.37092639,95824.0,95822.0,0.20872033]
[1763143364996,0.0218369,95823.0,95822.0,0.20872033]
[1763143365197,0.046,95823.0,95822.0,0.20872033]
[1763143365997,0.323,95829.0,95828.0,0.20870726]
[1763143366230,0.39082604,95829.0,95828.0,0.20870726]
[1763143366601,0.323,95829.0,95828.0,0.20870726]
[1763143367102,0.0363907,95852.0,95839.0,0.20868331]
[1763143367302,0.0363907,95852.0,95822.0,0.001]
[1763143367303,0.0363907,95852.0,95851.0,0.20865718]
[1763143367481,0.046,95852.0,95851.0,0.20865718]
[1763143367935,0.00024503,95857.0,95856.0,0.2086463]
[1763143368115,0.36924503,95857.0,95856.0,0.2086463]
[1763143368342,0.39106801,95857.0,95856.0,0.2086463]
[1763143368572,0.02206801,95857.0,95856.0,0.2086463]
[1763143368761,0.04624503,95857.0,95856.0,0.2086463]
[1763143368970,0.00024503,95857.0,95856.0,0.2086463]
[1763143370203,0.00024503,95857.0,95831.0,0.046]
[1763143370439,0.00024503,95857.0,95852.0,0.20865432]
[1763143370554,0.00024503,95857.0,95855.0,0.20864721]
[1763143370759,0.046,95856.0,95855.0,0.20864721]
[1763143371167,0.046,95856.0,95852.0,0.20865303]
[1763143371370,0.046,95856.0,95852.0,0.2086537]
[1763143371780,0.046,95856.0,95852.0,0.20865483]
[1763143372042,0.046,95856.0,95855.0,0.20864847]
[1763143372876,0.00024503,95857.0,95855.0,0.20864847]
[1763143373327,0.046,95856.0,95855.0,0.20864847]
[1763143373945,0.00024503,95857.0,95855.0,0.20864847]
[1763143374165,0.00024503,95857.0,95856.0,0.10479654]
[1763143374370,0.00024503,95857.0,95856.0,0.15181654]
[1763143374582,0.00024503,95857.0,95856.0,0.10479654]
[1763143375622,0.00024503,95857.0,95856.0,0.10579654]
[1763143376261,0.00024503,95857.0,95856.0,0.001]
[1763143376478,0.00024503,95857.0,95856.0,0.10579654]
[1763143377392,0.00024503,95857.0,95856.0,0.10479654]
[1763143377801,0.00024503,95857.0,95856.0,0.10579654]
[1763143378236,1e-08,95857.0,95856.0,0.14921528]
[1763143378775,1e-08,95857.0,95856.0,0.14821528]
[1763143378983,1e-08,95857.0,95856.0,0.19621528]
[1763143379198,1e-08,95857.0,95856.0,0.19421528]
[1763143379681,1e-08,95857.0,95856.0,0.19521528]
[1763143380126,1e-08,95857.0,95856.0,0.19421528]
[1763143380480,1e-08,95857.0,95856.0,0.19721528]
[1763143380849,1e-08,95857.0,95856.0,0.51921528]
[1763143381057,1e-08,95857.0,95856.0,0.51721528]
[1763143381255,1e-08,95857.0,95856.0,0.51921528]
[1763143381455,1e-08,95857.0,95856.0,0.19621528]
[1763143381659,1e-08,95857.0,95856.0,0.10979654]
[1763143381863,1e-08,95857.0,95856.0,0.005]
[1763143382078,1e-08,95857.0,95810.0,0.01043732]
[1763143382079,0.323,95854.0,95810.0,0.01043732]
[1763143382300,0.62310536,95830.0,95810.0,0.01043732]
[1763143382528,0.36896,95829.0,95810.0,0.01043732]
[1763143382726,0.02236,95811.0,95800.0,0.01043841]
[1763143382943,0.62310536,95810.0,95809.0,0.20874682]
[1763143383156,0.96846536,95820.0,95819.0,0.20872687]
[1763143383370,0.34536,95820.0,95819.0,0.20872687]
[1763143383572,0.323,95819.0,95817.0,0.20873098]
[1763143383807,0.323,95819.0,95817.0,0.2087305]
[1763143384009,0.323,95819.0,95818.0,0.20872904]
[1763143384240,0.04571,95818.0,95815.0,0.20873521]
[1763143384479,0.04571,95818.0,95765.0,0.07484114]
[1763143384711,0.62310536,95800.0,95798.0,0.20877254]
[1763143384941,0.04571,95818.0,95798.0,0.20877254]
[1763143384942,0.046,95799.0,95798.0,0.20877254]
[1763143385610,0.046,95799.0,95790.0,0.0114395]
[1763143385783,0.04571,95798.0,95796.0,0.20877491]
[1763143385984,0.04571,95798.0,95795.0,0.20877916]
[1763143386257,0.04571,95798.0,95780.0,0.01044059]
[1763143386517,0.04571,95798.0,95796.0,0.20877616]
[1763143386724,0.02236,95781.0,95780.0,0.21925026]
[1763143386940,0.06836,95781.0,95780.0,0.21925026]
[1763143387320,0.02236,95781.0,95780.0,0.21925026]
[1763143387523,0.06836,95781.0,95780.0,0.21925026]
[1763143387734,0.09923,95781.0,95780.0,0.20881186]
[1763143388016,0.06836,95781.0,95780.0,0.20981186]
[1763143388811,0.04571,95808.0,95788.0,0.20879442]
[1763143388998,0.64546536,95800.0,95799.0,0.20877044]
[1763143389216,0.02236,95800.0,95799.0,0.20877044]
[1763143389419,0.04571,95808.0,95807.0,0.20875301]
[1763143389621,0.04571,95808.0,95786.0,0.31319498]
[1763143389622,0.62310536,95817.0,95816.0,0.2087334]
[1763143389797,0.046,95817.0,95816.0,0.2087334]
[1763143390001,0.02236,95820.0,95819.0,0.20872687]
[1763143390224,0.02254,95828.0,95827.0,0.20870944]
[1763143390450,0.046,95828.0,95827.0,0.20870944]
[1763143390599,0.046,95828.0,95810.0,0.01398]
[1763143390600,0.62310536,95837.0,95836.0,0.20868984]
[1763143390794,0.046,95837.0,95835.0,0.20869104]
[1763143391056,0.02254,95835.0,95831.0,0.20869998]
[1763143391360,0.323,95829.0,95800.0,0.21920449]
[1763143391539,0.02254,95802.0,95800.0,0.01043841]
[1763143391745,0.323,95809.0,95808.0,0.20875083]
[1763143391920,0.369,95809.0,95808.0,0.20875083]
[1763143392122,0.39154,95809.0,95808.0,0.20875083]
[1763143392653,0.046,95809.0,95808.0,0.20875083]
[1763143393003,0.046,95809.0,95806.0,0.20875317]
[1763143393202,0.046,95809.0,95807.0,0.20875179]
[1763143393422,0.046,95809.0,95807.0,0.20875146]
[1763143394307,0.046,95809.0,95805.0,0.20875737]
[1763143394607,0.046,95809.0,95800.0,0.01043841]
[1763143394608,0.046,95809.0,95803.0,0.20876152]
[1763143394814,0.04465,95808.0,95806.0,0.20875479]
[1763143395160,0.03069,95807.0,95806.0,0.20875479]
[1763143395385,0.03069,95807.0,95792.0,0.20878553]
[1763143395588,0.36765,95808.0,95766.0,0.31326285]
[1763143395589,0.02254,95791.0,95766.0,0.31326285]
[1763143395808,0.66910536,95790.0,95789.0,0.2087922]
[1763143396123,0.07669,95790.0,95789.0,0.2087922]
[1763143396327,0.046,95790.0,95789.0,0.2087922]
[1763143396527,0.07169,95790.0,95789.0,0.2087922]
[1763143396732,0.041,95790.0,95789.0,0.2087922]
[1763143396909,0.07169,95790.0,95789.0,0.2087922]
[1763143397504,0.07169,95790.0,95788.0,0.20879356]
[1763143397701,0.04465,95789.0,95766.0,0.41768338]
[1763143397907,0.03069,95781.0,95780.0,0.21925027]
[1763143398103,0.07669,95781.0,95780.0,0.21925027]
[1763143398935,0.02254,95791.0,95780.0,0.21925027]
[1763143398936,0.02254,95791.0,95787.0,0.2087966]
[1763143399143,0.046,95790.0,95787.0,0.2087966]
[1763143399344,0.323,95799.0,95798.0,0.20877262]
[1763143399687,0.62310536,95810.0,95807.0,0.20875301]
[1763143399823,0.09923,95808.0,95807.0,0.20875301]
[1763143400015,0.05323,95808.0,95807.0,0.20875301]
[1763143400213,0.05323,95808.0,95795.0,0.20877746]
[1763143400417,0.10278412,95807.0,95806.0,0.20875361]
[1763143400654,0.323,95806.0,95778.0,0.02078]
[1763143400865,0.62310536,95790.0,95789.0,0.20879224]
[1763143401073,0.046,95790.0,95789.0,0.20879224]
[1763143401424,0.046,95790.0,95788.0,0.20879421]
[1763143401425,0.07669,95790.0,95788.0,0.20879421]
[1763143401672,0.03069,95789.0,95788.0,0.20879421]
[1763143402418,0.03069,95789.0,95781.0,0.20880827]
[1763143402620,0.046,95790.0,95753.0,0.07484114]
[1763143402621,0.05323,95782.0,95753.0,0.07484114]
[1763143402821,0.323,95769.0,95767.0,0.20883826]
[1763143403057,0.07669,95768.0,95767.0,0.20883826]
[1763143403271,0.07669,95768.0,95766.0,0.2088422]
[1763143403423,0.03069,95767.0,95766.0,0.2088422]
[1763143403633,0.03069,95767.0,95750.0,0.01391]
[1763143403634,0.03069,95767.0,95750.0,0.0004]
[1763143403834,0.02254,95751.0,95750.0,0.20927728]
[1763143404114,0.02254,95751.0,95750.0,0.0004]
[1763143404115,0.09923,95751.0,95750.0,0.0004]
[1763143404471,0.02254,95751.0,95750.0,0.0004]
[1763143404669,0.046,95751.0,95750.0,0.0004]
[1763143404892,0.02254,95767.0,95766.0,0.20884238]
[1763143405051,0.06854,95767.0,95766.0,0.20884238]
[1763143405253,0.09923,95767.0,95750.0,0.0004]
[1763143405473,0.05323,95751.0,95750.0,0.20927728]
[1763143405824,0.06854,95751.0,95750.0,0.21027728]
[1763143406030,0.02254,95759.0,95758.0,0.20885983]
[1763143406256,0.02254,95767.0,95766.0,0.20884238]
[1763143406426,0.06854,95767.0,95766.0,0.20884238]
[1763143406645,0.02254,95767.0,95766.0,0.20884238]
[1763143406878,0.06854,95767.0,95766.0,0.20884238]
[1763143407081,0.06854,95767.0,95752.0,0.3133064]
[1763143407082,0.09923,95767.0,95750.0,0.0014]
[1763143407348,0.35369,95766.0,95765.0,0.2088438]
[1763143407575,0.35369,95766.0,95760.0,0.20885536]
[1763143407744,0.03069,95765.0,95763.0,0.2088484]
[1763143408125,0.03069,95764.0,95763.0,0.2088484]
[1763143408917,0.03069,95764.0,95750.0,0.0004]
[1763143409139,0.03069,95751.0,95750.0,0.0004]
[1763143409341,0.07669,95751.0,95750.0,0.0004]
[1763143409797,0.36765,95759.0,95750.0,0.0004]
[1763143409798,0.323,95759.0,95758.0,0.20885983]
[1763143410001,0.369,95759.0,95758.0,0.20885983]
[1763143410445,0.046,95759.0,95758.0,0.20885983]
[1763143410884,0.34554,95767.0,95766.0,0.20884238]
[1763143411101,0.39154,95767.0,95750.0,0.0004]
[1763143411291,0.02941,95764.0,95761.0,0.20885231]
[1763143411544,0.02941,95764.0,95750.0,0.0004]
[1763143411749,0.02941,95764.0,95759.0,0.20885621]
[1763143411992,0.04648,95763.0,95761.0,0.2088518]
[1763143412412,0.02941,95762.0,95761.0,0.2088518]
[1763143412622,0.02941,95762.0,95750.0,0.0004]
[1763143412841,0.02941,95751.0,95750.0,0.0004]
[1763143413045,0.07541,95751.0,95750.0,0.0004]
[1763143413766,0.07541,95751.0,95750.0,0.0014]
[1763143414214,0.36948,95759.0,95750.0,0.2102751]
[1763143414215,0.323,95759.0,95750.0,0.2102751]
[1763143414418,0.02941,95751.0,95750.0,0.0014]
[1763143414851,0.41548,95758.0,95756.0,0.20886398]
[1763143415061,0.41548,95758.0,95750.0,0.0004]
[1763143415215,0.02941,95751.0,95750.0,0.0004]
[1763143415417,0.07541,95751.0,95750.0,0.0014]
[1763143415622,0.07541,95751.0,95750.0,0.0004]
[1763143416419,0.02284,95759.0,95755.0,0.20886637]
[1763143416652,0.02284,95759.0,95758.0,0.20885983]
[1763143416850,0.06884,95759.0,95758.0,0.20885983]
[1763143417178,0.02284,95759.0,95758.0,0.20885983]
[1763143417555,0.02284,95773.0,95750.0,0.01084386]
[1763143417764,0.02284,95773.0,95772.0,0.2088293]
[1763143417990,0.06884,95773.0,95772.0,0.2088293]
[1763143418365,0.64564536,95782.0,95780.0,0.20881186]
[1763143418727,0.02254,95782.0,95780.0,0.20881186]
[1763143418868,0.04648,95793.0,95776.0,0.20881689]
[1763143418869,0.04648,95793.0,95792.0,0.2087857]
[1763143419067,0.20872932,95818.0,95770.0,0.01044168]
[1763143419068,0.66958536,95802.0,95801.0,0.20876608]
[1763143419273,0.12189,95802.0,95801.0,0.20876608]
[1763143419500,0.44489,95802.0,95801.0,0.20876608]
[1763143419679,0.44489,95802.0,95796.0,0.20877562]
[1763143419680,0.12189,95802.0,95796.0,0.20877562]
[1763143419874,0.02941,95801.0,95780.0,0.01044059]
[1763143420231,0.323,95799.0,95798.0,0.20877262]
[1763143420419,0.35241,95799.0,95780.0,0.01044059]
[1763143420611,0.046,95798.0,95796.0,0.20877616]
[1763143420812,0.07144886,95798.0,95796.0,0.20877616]
[1763143421026,0.35241,95797.0,95780.0,0.01044059]
[1763143421222,0.62310536,95790.0,95786.0,0.20879698]
[1763143421468,0.62310536,95790.0,95750.0,0.01084386]
[1763143421469,0.05225,95781.0,95750.0,0.01084386]
[1763143421596,0.69520684,95780.0,95779.0,0.20881391]
[1763143421826,0.046,95780.0,95779.0,0.20881391]
[1763143422042,0.07541,95780.0,95775.0,0.2088221]
[1763143422250,0.34910175,95779.0,95771.0,0.20883148]
[1763143422455,0.39558175,95779.0,95777.0,0.20881824]
[1763143422675,0.04648,95778.0,95776.0,0.20881939]
[1763143422885,0.06939123,95778.0,95776.0,0.20881939]
[1763143423097,0.02941,95777.0,95776.0,0.20881939]
[1763143423542,0.37250099,95777.0,95771.0,0.20883054]
[1763143423738,0.10199257,95776.0,95751.0,0.01351]
[1763143424008,0.01232744,95775.0,95759.0,0.20885329]
[1763143424136,0.01117319,95774.0,95767.0,0.2088391]
[1763143424340,0.01302798,95773.0,95751.0,0.01351]
[1763143424536,0.02610366,95772.0,95771.0,0.20883148]
[1763143424744,0.046,95772.0,95740.0,0.05363495]
[1763143424947,0.046,95772.0,95766.0,0.20884121]
[1763143424948,0.62310536,95770.0,95766.0,0.20884121]
[1763143425146,0.02284,95761.0,95754.0,0.20886647]
[1763143425381,0.06884,95761.0,95760.0,0.01144277]
[1763143425592,0.06884,95761.0,95760.0,0.22029791]
[1763143425793,0.09825,95761.0,95751.0,0.2088751]
[1763143425970,0.09825,95761.0,95759.0,0.2088571]
[1763143426407,0.046,95761.0,95759.0,0.2088571]
[1763143426956,0.04572328,95761.0,95759.0,0.2088571]
[1763143427180,0.323,95775.0,95774.0,0.20882494]
[1763143427391,0.04648,95782.0,95780.0,0.20881186]
[1763143427666,0.02941,95775.0,95760.0,0.01044277]
[1763143427871,0.02941,95775.0,95724.0,2.74217469]
[1763143427872,0.62310536,95770.0,95748.0,0.31331265]
[1763143428077,0.06658074,95769.0,95768.0,0.20883604]
[1763143428270,0.05947271,95769.0,95750.0,0.0004]
[1763143428475,0.02284,95751.0,95750.0,0.20927728]
[1763143428707,0.06884,95751.0,95750.0,0.20927728]
[1763143429286,0.046,95751.0,95750.0,0.20927728]
[1763143429867,0.323,95767.0,95759.0,0.20885765]
[1763143430055,0.046,95766.0,95765.0,0.20884456]
[1763143430620,0.37263867,95770.0,95769.0,0.20883584]
[1763143430749,0.046,95770.0,95769.0,0.20883584]
[1763143430950,0.323,95778.0,95777.0,0.2088184]
[1763143431155,0.369,95778.0,95777.0,0.2088184]
[1763143431372,0.369,95778.0,95763.0,0.01351]
[1763143431373,0.39841,95778.0,95755.0,0.01351]
[1763143431568,0.02941,95776.0,95774.0,0.20882317]
[1763143431804,0.04341874,95775.0,95750.0,0.01084386]
[1763143432032,0.37263867,95770.0,95759.0,0.20885765]
[1763143432225,0.37263867,95770.0,95768.0,0.2088362]
[1763143432366,0.046,95774.0,95769.0,0.20883516]
[1763143432580,0.02941,95770.0,95750.0,0.0004]
[1763143432799,0.02284,95751.0,95750.0,0.0004]
[1763143432999,0.06884,95751.0,95750.0,0.0004]
[1763143434265,0.09825,95751.0,95750.0,0.0004]
[1763143434470,0.06884,95751.0,95750.0,0.20927728]
[1763143434716,0.046,95751.0,95750.0,0.20927728]
[1763143434866,0.02284,95759.0,95758.0,0.20885983]
[1763143435066,0.09825,95759.0,95756.0,0.20886291]
[1763143435515,0.02941,95757.0,95750.0,0.0014]
[1763143435825,0.046,95758.0,95750.0,0.0014]
[1763143436034,0.046,95758.0,95757.0,0.20886201]
[1763143436705,0.02284,95759.0,95758.0,0.20885983]
[1763143436875,0.06884,95759.0,95758.0,0.20885983]
[1763143437520,0.37263867,95767.0,95766.0,0.20884238]
[1763143437695,0.09646373,95767.0,95759.0,0.00994]
[1763143437910,0.046,95767.0,95766.0,0.20884238]
[1763143438136,0.07454891,95767.0,95766.0,0.20884238]
[1763143438344,0.0095163,95767.0,95766.0,0.20884238]
[1763143438546,0.0555163,95767.0,95766.0,0.20884238]
[1763143439285,0.046,95767.0,95766.0,0.20884238]
[1763143440185,0.07541,95767.0,95766.0,0.20884238]
[1763143440351,0.07541,95767.0,95763.0,0.20884767]
[1763143440577,0.07541,95767.0,95751.0,0.00994]
[1763143440578,0.02610529,95766.0,95751.0,0.00994]
[1763143440771,0.05103,95752.0,95750.0,0.0004]
[1763143440977,0.08425636,95751.0,95750.0,0.0004]
[1763143441184,0.07475,95751.0,95750.0,0.0004]
[1763143441541,0.08424571,95751.0,95750.0,0.0004]
[1763143441963,0.31211026,95751.0,95750.0,0.0004]
[1763143442171,0.10323516,95751.0,95750.0,0.0004]
[1763143442759,0.541502,95751.0,95750.0,0.0004]
[1763143442958,2.491502,95751.0,95750.0,0.0004]
[1763143443361,2.541502,95751.0,95750.0,0.0004]
[1763143443608,2.542502,95751.0,95750.0,0.0004]
[1763143443966,2.541502,95751.0,95750.0,0.0004]
[1763143444163,0.491502,95751.0,95750.0,0.0004]
[1763143444415,0.40308326,95751.0,95750.0,0.0004]
[1763143444594,0.38123516,95751.0,95750.0,0.0004]
[1763143444754,0.047,95751.0,95750.0,0.0004]
[1763143444959,0.048,95751.0,95750.0,0.0004]
[1763143445161,0.002,95751.0,95750.0,0.0004]
[1763143445364,0.10185938,95751.0,95750.0,0.20927728]
[1763143445569,0.10185938,95751.0,95750.0,0.0004]
[1763143445778,0.10385938,95751.0,95750.0,0.20927728]
[1763143445978,0.002,95751.0,95750.0,0.20927728]
[1763143446203,0.048,95751.0,95750.0,0.20927728]
[1763143446410,0.02228,95759.0,95758.0,0.20885983]
[1763143446614,0.06828,95759.0,95758.0,0.20885983]
[1763143446812,0.06828,95759.0,95757.0,0.20886007]
[1763143447072,0.02875,95757.0,95750.0,0.0004]
[1763143447301,0.02875,95751.0,95750.0,0.0004]
[1763143447509,0.42610616,95751.0,95750.0,0.0004]
[1763143447725,0.5195249,95751.0,95750.0,0.0004]
[1763143448182,0.4695249,95751.0,95750.0,0.0004]
[1763143448688,0.42710616,95751.0,95750.0,0.0004]
[1763143448887,0.40720205,95751.0,95750.0,0.0004]
[1763143449124,0.03820205,95751.0,95750.0,0.0004]
[1763143449326,0.37263867,95760.0,95758.0,0.20885983]
[1763143449528,0.02732945,95780.0,95756.0,0.20886419]
[1763143449529,0.001,95757.0,95756.0,0.20886419]
[1763143449956,0.37263867,95780.0,95778.0,0.20881622]
[1763143450159,0.02732945,95800.0,95799.0,0.20877044]
[1763143450160,0.37263867,95800.0,95799.0,0.20877044]
[1763143450368,0.07436216,95800.0,95771.0,0.04125]
[1763143450579,0.05106916,95799.0,95798.0,0.2087714]
[1763143450780,0.02836216,95799.0,95798.0,0.2087714]
[1763143450982,0.046,95799.0,95798.0,0.2087714]
[1763143451110,0.046,95799.0,95781.0,0.01039]
[1763143453552,0.02838304,95808.0,95807.0,0.20875301]
[1763143453753,0.37263867,95820.0,95790.0,0.0104395]
[1763143454010,0.37263867,95810.0,95809.0,0.20874696]
[1763143454158,0.046,95810.0,95809.0,0.20874696]
[1763143454900,0.37263867,95820.0,95807.0,0.20875085]
[1763143455099,0.001,95808.0,95804.0,0.20875844]
[1763143455395,0.046,95807.0,95805.0,0.20875737]
[1763143456195,0.001,95810.0,95807.0,0.20875301]
[1763143456353,0.001,95810.0,95809.0,0.20874865]
[1763143456722,0.04696,95810.0,95809.0,0.20874865]
[1763143457107,0.04596,95810.0,95809.0,0.20874865]
[1763143457491,0.323,95829.0,95809.0,0.20874865]
[1763143457492,0.02732945,95849.0,95818.0,0.02892]
[1763143457695,0.02838868,95841.0,95833.0,0.20869527]
[1763143457917,0.10043382,95840.0,95835.0,0.20869105]
[1763143458116,0.02838868,95839.0,95838.0,0.20868549]
[1763143458485,0.02838868,95839.0,95819.0,0.01039]
[1763143458486,0.37263867,95860.0,95856.0,0.2086463]
[1763143458657,0.37263867,95860.0,95847.0,0.01908]
[1763143458658,0.04596001,95857.0,95850.0,0.20865788]
[1763143458864,0.02946,95851.0,95849.0,0.20865958]
[1763143459127,0.02608078,95856.0,95854.0,0.20864877]
[1763143459298,0.04596001,95857.0,95832.0,0.20869855]
[1763143459527,0.37263867,95850.0,95830.0,0.01043514]
[1763143459953,0.37263867,95850.0,95848.0,0.20866203]
[1763143460138,0.08807,95856.0,95844.0,0.20867126]
[1763143460362,0.37263867,95854.0,95850.0,0.20865762]
[1763143460563,0.08807,95856.0,95850.0,0.20865762]
[1763143460764,0.02946,95851.0,95843.0,0.20867339]
[1763143460941,0.02946,95851.0,95831.0,0.20870073]
[1763143461144,0.02608242,95850.0,95849.0,0.20865991]
[1763143461340,0.02608242,95850.0,95842.0,0.20867644]
[1763143461541,0.02608242,95850.0,95830.0,0.01043514]
[1763143461751,0.02608242,95850.0,95845.0,0.20866938]
[1763143461950,0.02608242,95850.0,95830.0,0.01043514]
[1763143461951,0.02608242,95850.0,95844.0,0.2086707]
[1763143462152,0.02608242,95850.0,95847.0,0.20866446]
[1763143462326,0.02331642,95851.0,95850.0,0.20865936]
[1763143462526,0.04596,95856.0,95847.0,0.208664]
[1763143462527,0.0247182,95855.0,95847.0,0.208664]
[1763143462731,1e-08,95857.0,95856.0,0.2086463]
[1763143463317,0.04596001,95857.0,95856.0,0.2086463]
[1763143464285,0.04596001,95857.0,95855.0,0.20864703]
[1763143464606,0.04596001,95857.0,95844.0,0.22775204]
[1763143464607,0.04596001,95857.0,95844.0,0.22775208]
[1763143464765,0.04596001,95857.0,95844.0,0.01908]
[1763143464967,0.02099,95845.0,95840.0,0.20868001]
[1763143465210,0.04596,95844.0,95843.0,0.2086746]
[1763143465524,0.04596,95844.0,95842.0,0.20867609]
[1763143465698,0.04596,95844.0,95840.0,0.20868021]
[1763143465903,0.04596,95844.0,95842.0,0.20867566]
[1763143466105,0.02099,95864.0,95856.0,0.2086463]
[1763143466284,0.04596001,95857.0,95856.0,0.2086463]
[1763143466678,1e-08,95857.0,95856.0,0.2086463]
[1763143466887,0.04596001,95857.0,95856.0,0.2086463]
[1763143467116,0.04596001,95857.0,95855.0,0.20864841]
[1763143467326,0.04596001,95857.0,95852.0,0.20865451]
[1763143467582,0.04596001,95857.0,95855.0,0.20864659]
[1763143469009,0.04596001,95857.0,95855.0,0.20964659]
[1763143469364,0.04596001,95857.0,95855.0,0.20864659]
[1763143469942,0.04596001,95857.0,95855.0,0.20964659]
[1763143470106,1e-08,95857.0,95855.0,0.20964659]
[1763143470277,0.04596,95856.0,95855.0,0.20864659]
[1763143470895,0.04596,95856.0,95854.0,0.20864966]
[1763143471114,0.04596,95856.0,95854.0,0.20864866]
[1763143471319,0.04596,95856.0,95846.0,0.20866807]
[1763143471517,0.02608105,95855.0,95835.0,0.01908]
[1763143471729,0.37263867,95845.0,95841.0,0.20867883]
[1763143471935,0.04592,95844.0,95837.0,0.20868657]
[1763143472263,0.04592,95844.0,95836.0,0.20868984]
[1763143472468,0.04592,95844.0,95842.0,0.20867646]
[1763143472806,0.04592,95844.0,95839.0,0.20868161]
[1763143473008,0.01998,95843.0,95839.0,0.20868161]
[1763143473211,0.01998,95843.0,95837.0,0.20868582]
[1763143473413,0.01998,95843.0,95833.0,0.2086961]
[1763143473610,0.01998,95843.0,95830.0,0.01043514]
[1763143473611,0.06027,95843.0,95830.0,0.01043514]
[1763143473820,0.06027,95843.0,95830.0,0.21913628]
[1763143473821,0.37263867,95840.0,95830.0,0.21913628]
[1763143474002,0.37263867,95840.0,95831.0,0.20869927]
[1763143474653,0.37263867,95840.0,95832.0,0.20869792]
[1763143474853,0.37263867,95840.0,95838.0,0.20868484]
[1763143475075,0.04029,95841.0,95830.0,0.01043514]
[1763143475257,0.02621,95839.0,95832.0,0.20869855]
[1763143475495,0.02621,95839.0,95833.0,0.001]
[1763143475700,0.01887515,95838.0,95833.0,0.001]
[1763143475901,0.01887515,95837.0,95830.0,0.01043514]
[1763143476098,1e-08,95857.0,95830.0,0.01043514]
[1763143476099,0.04592,95836.0,95834.0,0.20868766]
[1763143476264,0.01888842,95835.0,95834.0,0.20869332]
[1763143476684,0.04592,95835.0,95834.0,0.20869332]
[1763143477356,0.04592,95835.0,95830.0,0.21913743]
[1763143477357,0.01812493,95849.0,95848.0,0.20866371]
[1763143477526,0.02178252,95859.0,95856.0,0.2086463]
[1763143477727,0.07429293,95857.0,95856.0,0.2086463]
[1763143478082,0.02837293,95857.0,95856.0,0.2086463]
[1763143478280,0.07429293,95857.0,95856.0,0.2086463]
[1763143478483,0.02837293,95857.0,95856.0,0.2086463]
[1763143478688,0.07429293,95857.0,95856.0,0.2086463]
[1763143480862,0.07435765,95857.0,95849.0,0.01697]
[1763143481067,0.04045621,95856.0,95852.0,0.20865443]
[1763143481227,0.02843764,95855.0,95852.0,0.20865443]
[1763143481434,0.02843764,95854.0,95850.0,0.20865936]
[1763143481627,0.02843764,95853.0,95850.0,0.20865936]
[1763143481902,0.02843764,95852.0,95842.0,0.01697]
[1763143482202,0.07435764,95851.0,95850.0,0.20865799]
[1763143483023,0.07435764,95851.0,95850.0,0.001]